Cogmind - Beta 11.1 @@@ ROGUE MODE // 2022.05.04 @ 13:17:24 Player: Azken Zutik Result: Destroyed by G-34 Mercenary with Small Laser Performance ------------- Evolutions (1) 500 Regions Visited (4) 800 Robots Destroyed (0) 0 Value Destroyed (0) 0 Prototype IDs (0) 0 Alien Tech Used (0) 0 Bonus (400) 400 TOTAL SCORE: 1700 Bonus ------- Pacifist 200 Entered Garrisons 200 Cogmind --------- Core Integrity 0/400 Matter 295/300 Energy 100/100 System Corruption 3% Temperature Cool (4) Movement Core (50) Location -9/Garrison Parts ------- > --- POWER (1) -------- (None) > --- PROPULSION (2) --- (None) > --- UTILITY (4) ------ (None) > --- WEAPON (2) ------- (None) > --- INVENTORY (5) ---- Wheel Peak State ------------ > --- POWER ------------ (None) > --- PROPULSION ------- Light Treads > --- UTILITY ---------- (None) > --- WEAPON ----------- Small Laser > --- INVENTORY -------- Light Treads Wheel Wheel [Rating: 2] Favorites ----------- Power None Propulsion Light Treads Treads Light Treads Wheel Wheel Utility None Weapon Small Laser Energy Gun Small Laser Build | -11 -10 -9 -9 -9 ------- Run | Scr Mat Mat Sto Gar Slots Evolved 2 | . . 2 . . Power . | . . . . . Propulsion . | . . . . . Utility 2 | . . 2 . . Weapon . | . . . . . Parts Attached 4 | 3 . . . 1 Power . | . . . . . Engine . | . . . . . Core . | . . . . . Reactor . | . . . . . Propulsion 3 | 2 . . . 1 Treads 2 | 2 . . . . Leg . | . . . . . Wheel 1 | . . . . 1 Hover . | . . . . . Flight . | . . . . . Utility . | . . . . . Device . | . . . . . Storage . | . . . . . Processor . | . . . . . Hackware . | . . . . . Protection . | . . . . . Artifact . | . . . . . Weapon 1 | 1 . . . . Energy Gun 1 | 1 . . . . Energy Cannon . | . . . . . Ballistic Gun . | . . . . . Ballistic Cannon . | . . . . . Launcher . | . . . . . Special Weapon . | . . . . . Impact Weapon . | . . . . . Slashing Weapon . | . . . . . Piercing Weapon . | . . . . . Special Melee Weapon . | . . . . . Unidentified Prototypes . | . . . . . Parts Lost 3 | . . . . 3 Power . | . . . . . Propulsion 3 | . . . . 3 Utility . | . . . . . Weapon . | . . . . . Highest Loss Streak 3 | . . . . 3 To Critical Strikes . | . . . . . Average Slot Usage (%) 20 | . 28 22 22 17 Treads 19 | . 28 22 22 15 Wheel 1 | . . . . 2 Naked Turns 9 | . . . . 9 Heaviest Build . | . . . . . Greatest Support 40 | 3 3 3 3 40 Greatest Overweight (x) . | . . . . . Average Overweight (x) . | . . . . . Largest Inventory Capacity 5 | 5 5 5 5 5 Average Capacity 5 | 5 5 5 5 5 Most Carried 4 | 4 2 2 2 2 Average Carried 1 | 3 2 2 2 1 Final Capacity 5 | 5 5 5 5 5 Final Carried 2 | 2 2 2 2 1 Class Distribution -------------------- 100% | Mutant Dominant Class ---------------- Mutant | -10/Materials Mutant | -9/Materials Mutant | -9/Storage Mutant | -9/Garrison Resources | -11 -10 -9 -9 -9 ----------- Run | Scr Mat Mat Sto Gar Matter Collected 195 | 195 . . . . Remotely . | . . . . . Salvage Created . | . . . . . Parts . | . . . . . Haulers Intercepted . | . . . . . Recyclers Shooed . | . . . . . Parts Field Recycled . | . . . . . Retrieved Matter . | . . . . . Parts Self-Destructed . | . . . . . Prevented . | . . . . . Kills | -11 -10 -9 -9 -9 ------- Run | Scr Mat Mat Sto Gar Combat Hostiles Destroyed . | . . . . . Classes Destroyed . | . . . . . Best Kill Streak . | . . . . . Combat Bots Only . | . . . . . Max Kills in Single Turn . | . . . . . Gunslinging . | . . . . . Exploded . | . . . . . Melee . | . . . . . Uniques/NPCs Destroyed . | . . . . . Combat | -11 -10 -9 -9 -9 -------- Run | Scr Mat Mat Sto Gar Damage Taken 727 | . 19 174 . 534 Core 405 | . . 81 . 324 Absorbed by Shields 20 | . . . . 20 Core Remaining (%) 100 | 100 100 . . . Volleys Fired . | . . . . . Largest . | . . . . . Hottest . | . . . . . Shots Fired . | . . . . . Gun . | . . . . . Cannon . | . . . . . Launcher . | . . . . . Special . | . . . . . Kinetic . | . . . . . Thermal . | . . . . . Explosive . | . . . . . Electromagnetic . | . . . . . Robot Hit Streak . | . . . . . Robot Miss Streak . | . . . . . Penetration Max . | . . . . . Secondary Targets . | . . . . . Shots Hit Robots . | . . . . . Core Hits . | . . . . . Critical Kills . | . . . . . Critical Parts Destroyed . | . . . . . Critical Strikes . | . . . . . Melee Attacks . | . . . . . Impact . | . . . . . Slashing . | . . . . . Piercing . | . . . . . Sneak Attacks . | . . . . . Combat Hostiles . | . . . . . Follow-up Attacks . | . . . . . Damage Inflicted 41 | . . 2 . 39 Guns . | . . . . . Cannons . | . . . . . Explosions . | . . . . . Melee . | . . . . . Ramming 41 | . . 2 . 39 Kinetic . | . . . . . Thermal . | . . . . . Explosive . | . . . . . Electromagnetic . | . . . . . Impact . | . . . . . Slashing . | . . . . . Piercing . | . . . . . Highest Corruption 3 | . . . . 3 Average Corruption 2 | . . . . 2 Corruption Purged . | . . . . . Corruption Blocked . | . . . . . Effects 3 | . . . . 3 Message Errors 2 | . . . . 2 Data Loss (major) 1 | . . . . 1 Overload Shots . | . . . . . Overflow Damage . | . . . . . Projectiles . | . . . . . Explosions . | . . . . . Melee . | . . . . . Knockbacks . | . . . . . Impact . | . . . . . Kinetic . | . . . . . Secondary . | . . . . . Self-Inflicted Damage 19 | . . 1 . 18 Shots . | . . . . . Rammed 9 | . . 2 . 7 Targets Rammed 9 | . . 2 . 7 Kicked . | . . . . . Crushed . | . . . . . Highest Temperature . | . . . . . Average Temperature . | . . . . . Received Heat Transfer 192 | . . 90 . 102 Siege Activations . | . . . . . Robots Corrupted . | . . . . . Combat Hostiles . | . . . . . Parts Fried . | . . . . . Impact Corruptions . | . . . . . Robots Melted . | . . . . . Combat Hostiles . | . . . . . Parts Melted . | . . . . . Heat Transferred . | . . . . . Parts Sabotaged . | . . . . . Parts Stolen . | . . . . . Parts Stripped . | . . . . . Power Chain Reactions . | . . . . . Missiles Intercepted . | . . . . . Alert | -11 -10 -9 -9 -9 ------- Run | Scr Mat Mat Sto Gar Peak Influence 35 | . 24 24 24 35 Initial 25 | . . 9 9 25 Average 17 | . 11 19 12 20 Maximum Alert Level . | . . . . . Low Security (%) 100 | 100 100 100 100 100 Level 1 . | . . . . . Level 2 . | . . . . . Level 3 . | . . . . . Level 4 . | . . . . . Level 5 . | . . . . . High Security . | . . . . . Max Security . | . . . . . Squads Dispatched 2 | . . 2 . . Investigation 1 | . . 1 . . Extermination . | . . . . . Reinforcement 1 | . . 1 . . Assault . | . . . . . Garrison . | . . . . . Intercept . | . . . . . Searches Triggered . | . . . . . Construction Impeded . | . . . . . Haulers Reinforced . | . . . . . Active Scanning Responses . | . . . . . Cargo Convoy Interrupts . | . . . . . Stealth | -11 -10 -9 -9 -9 --------- Run | Scr Mat Mat Sto Gar Distress Signals 1 | . . . 1 . Communications Jammed . | . . . . . Distress Signals . | . . . . . Times Spotted 19 | . 1 7 2 9 Peak Tracking Total 7 | . 1 6 5 7 Tactical Retreats 1 | . . . . 1 Traps | -11 -10 -9 -9 -9 ------- Run | Scr Mat Mat Sto Gar Traps Triggered 3 | . 1 . . 2 Indirectly . | . . . . . Trap Hack Attempts . | . . . . . Triggered . | . . . . . Disarmed . | . . . . . Reprogrammed . | . . . . . Reused . | . . . . . Traps Extracted . | . . . . . Installed . | . . . . . Triggered . | . . . . . Machines | -11 -10 -9 -9 -9 ---------- Run | Scr Mat Mat Sto Gar Machines Disabled . | . . . . . Max in Single Turn . | . . . . . Machines Sabotaged . | . . . . . Garrisons Compromised . | . . . . . Overloaded Fab Kills . | . . . . . Hacking | -11 -10 -9 -9 -9 --------- Run | Scr Mat Mat Sto Gar Machines Accessed 3 | . 1 1 1 . Terminals 2 | . 1 1 . . Fabricators . | . . . . . Repair Stations . | . . . . . Recycling Units . | . . . . . Scanalyzers . | . . . . . Garrison Access 1 | . . . 1 . Total Hacks 5 | . 1 3 1 . Successful 2 | . 1 . 1 . Failed 3 | . . 3 . . Catastrophic 1 | . . 1 . . Database Lockouts . | . . . . . Manual 4 | . 1 3 . . Terminals 4 | . 1 3 . . Fabricators . | . . . . . Repair Stations . | . . . . . Recycling Units . | . . . . . Scanalyzers . | . . . . . Garrison Access 1 | . . . 1 . Terminal Hacks 1 | . 1 . . . Level Access Points 1 | . 1 . . . Fabricator Hacks . | . . . . . Repair Station Hacks . | . . . . . Recycling Unit Hacks . | . . . . . Scanalyzer . | . . . . . Garrison Access Hacks 1 | . . . 1 . Unlock Access 1 | . . . 1 . Unauthorized Hacks . | . . . . . Terminals . | . . . . . Fabricators . | . . . . . Repair Stations . | . . . . . Recycling Units . | . . . . . Scanalyzers . | . . . . . Garrison Access . | . . . . . Data Cores Recovered . | . . . . . Used . | . . . . . Hacking Detections 2 | . . 1 1 . Full Trace Events 1 | . . 1 . . Feedback Events . | . . . . . Feedback Blocked . | . . . . . Robot Schematics Acquired . | . . . . . Robots Built . | . . . . . Authchips . | . . . . . Time . | . . . . . Total Robot Build Rating . | . . . . . Part Schematics Acquired . | . . . . . Parts Built . | . . . . . Authchips . | . . . . . Time . | . . . . . Total Part Build Rating . | . . . . . Parts Repaired . | . . . . . Time . | . . . . . Parts Recycled . | . . . . . Recycled Matter . | . . . . . Retrieved Matter . | . . . . . Retrieved Components . | . . . . . Parts Scanalyzed . | . . . . . Part Schematics Acquired . | . . . . . Parts Damaged . | . . . . . Bothacking | -11 -10 -9 -9 -9 ------------ Run | Scr Mat Mat Sto Gar Used RIF Installer . | . . . . . Robots Hacked . | . . . . . Non-combat . | . . . . . Combat . | . . . . . Robot Hacks Applied . | . . . . . Relay Couplers Released . | . . . . . Fabnet Peak Effective % . | . . . . . Robots Rewired . | . . . . . Allies Hacked . | . . . . . Hacks Repelled . | . . . . . Allies | -11 -10 -9 -9 -9 -------- Run | Scr Mat Mat Sto Gar Total Allies . | . . . . . Largest Group . | . . . . . Highest-Rated Group . | . . . . . Highest-Rated Ally . | . . . . . Total Orders . | . . . . . Ally Attacks . | . . . . . Total Damage . | . . . . . Kills . | . . . . . Allies Corrupted . | . . . . . Allies Melted . | . . . . . Intel | -11 -10 -9 -9 -9 ------- Run | Scr Mat Mat Sto Gar Robot Analysis Total . | . . . . . Derelict Logs Recovered . | . . . . . Drone Launches . | . . . . . Drone Recoveries . | . . . . . Exploration | -11 -10 -9 -9 -9 ------------- Run | Scr Mat Mat Sto Gar Turns Passed 185 | 4 35 25 23 98 Spaces Moved 292 | 1 70 46 45 130 Core 286 | 1 70 46 45 124 Treads 4 | . . . . 4 Legs . | . . . . . Wheels 2 | . . . . 2 Hover . | . . . . . Flight . | . . . . . Fastest Speed 50 | 50 50 50 50 50 Average Speed 51 | 50 50 50 50 53 Slowest Speed 160 | 50 50 50 50 160 Overloaded Moves . | . . . . . Propulsion Burnouts . | . . . . . Robots Hopped . | . . . . . Cave-ins Triggered . | . . . . . Exploration Rate (%) 16 | 2 22 10 15 35 Regions Visited 4 Branch Regions 1 Pre-discovered Areas . | . . . . . Known Exits Taken 2 | . 1 . 1 . Unknown Exits Taken 2 | 1 . 1 . . Scrap Searched . | . . . . . Spaces Dug . | . . . . . Terrain Destroyed . | . . . . . Melee . | . . . . . Projectile . | . . . . . AOE . | . . . . . Terrain Rammed . | . . . . . Walls Destroyed . | . . . . . Machines Disabled . | . . . . . Actions | -11 -10 -9 -9 -9 --------- Run | Scr Mat Mat Sto Gar Total 323 | 4 69 47 45 158 Wait . | . . . . . Move 288 | . 69 45 45 129 Hop . | . . . . . Pick Up . | . . . . . Fast Attach . | . . . . . Attach 4 | 3 . . . 1 Detach . | . . . . . Swap . | . . . . . Drop 1 | 1 . . . . Fire . | . . . . . Melee . | . . . . . Ram 9 | . . 2 . 7 Kick . | . . . . . Crush . | . . . . . Escape Stasis 21 | . . . . 21 Rewire . | . . . . . Trap . | . . . . . Miscellaneous . | . . . . . Route ------- -11/Scrapyard -10/Materials (discovered 3 exits: *Mat x3) -9/Materials -9/Storage -9/Garrison (discovered 1 exit: [*Mat]) History --------- Turn | Location | Event 1 | -11/Scrapyard | Released all parts (6) 5 | -11/Scrapyard | Discovered new exit (range 0) 5 | -11/Scrapyard | Entered Materials 17 | -10/Materials | Identified exit to Materials 40 | -10/Materials | Entered another Materials area 40 | -9/Materials | Evolved 2 slots: Utility x2 57 | -9/Materials | Discovered new exit (range 16) 65 | -9/Materials | Entered Storage 88 | -9/Storage | Identified exit to Garrison 88 | -9/Storage | Entered Garrison 124 | -9/Garrison | Triggered checkpoint 145 | -9/Garrison | Discovered new exit (range 15) 152 | -9/Garrison | Attempted to access garrison exit controls, blocked by remote lockdown 159 | -9/Garrison | Core integrity fell below 50% 167 | -9/Garrison | Core integrity fell below 20% 182 | -9/Garrison | Triggered checkpoint 186 | -9/Garrison | Destroyed by G-34 Mercenary with Small Laser Last Messages --------------- 00152_ Attempting to access garrison exit controls... 00152_ Remote lockdown engaged. 00156_ Lgt. Treads destroyed. 00158_ Slammed into S-10 Pest. 00158_ Destabilizing: System corrupted (+1). 00159_ Slammed into S-10 Pest. 00159_ Destabilizing: Core damaged (-4). 00160_ Slammed into S-10 Pest. 00166_ G|LTELNF5 AGJNQ=L8ISJDECCHEV>7P9TN <2GK 00181_ Triggered Stasis Trap. 00181_ A bubble of rippling energy engulfs the area. 00181_ Field strength at 94. 00181_ Field strength at 84. 00182_ Beams of light sweep through the air. An alarm sounds. 00182_ Field strength at 74. 00183_ Field strength at 59. 00184_ Field strength at 47. 00185_ Field strength at 31. 00186_ Field strength at 19. 00186_ Wheel destroyed. Map ----- +----------------------------------------------------+ | ?????????????????????????????????????????????????? | | ?????????????????????????????????????????????????? | | ?????????????????????????????????????????????????? | | ?????????????????????????????????????????????????? | | ?????????????????????????????????????????????????? | | ?????????????????????????????????????????????????? | | ?????????????????????????????????????????????????? | | ?????????????????????????????????????????????????? | | ?????????????#???????????????????????????????????? | | ############ #######?????????????????????????????? | | #?????????????????????????????? | | #?????????????????????????????? | | ####### ######## #?????????????????????????????? | | ??????# #??????# #?????????????????????????????? | | ??????# #??????# #?????????????????????????????? | | ??????# #??????# #?????????#???????????????????? | | ??????# #??????# #???????? #???????????????????? | | ??????# #??????# #???????? #???????????????????? | | ??????# #??????# #??????? #???????????????????? | | ??????# #?????## ##""""## ##??????????????????? | | ??????# ####### #??????????????????? | | ??????# #??????????????????? | | ??????# % #??????????????????? | | ??????########## ## ## #??????????????????? | | ?????????????### ## ## ###????????????????? | | ?????????????# @ g#????????????????? | | ?????????????# #????????????????? | | ?????????????# #????????????????? | | ?????????????# ss g#????????????????? | | ?????????????### ## ## ###????????????????? | | ?????########### ## #? #??????????????????? | | ?????# #??????????????????? | | ?????# #??????????????????? | | ?????# #??????????????????? | | ?????# ############""""## ##??????????????????? | | ?????# #????????????????? #???????????????????? | | ?????# #?????????????????? #???????????????????? | | ?????# #?????????????????? #???????????????????? | | ?????# #???????????????????#???????????????????? | | ?????# #???????????????????????????????????????? | | ?????# #???????????????????????????????????????? | | ?????# ^ #???????????????????????????????????????? | | ?????#^ #???????????????????????????????????????? | | ??#### #???????????????????????????????????????? | | ??# + #???????????????????????????????????????? | | ??#### #???????????????????????????????????????? | | ?????# #???????????????????????????????????????? | | ?????# #???????????????????????????????????????? | | ?????# #???????????????????????????????????????? | | ????# #???????????????????????????????????????? | +----------------------------------------------------+ Best States ------------- Heat Dissipation 28 Energy Generation 5 Energy Capacity 100 Matter Stores 300 Matter Capacity 300 Sight Range 16 Terrain Scan Density 10 Evasion (%) 50 Recoil Reduction 2 Item Schematics ----------------- None Robot Schematics ------------------ None Fabricated ------------ Nothing Alien Tech Used ----------------- None Achievements -------------- None Challenges ------------ None Game ------ Seed MiningAlloyGenerator Manual? 0 Play Time 00:06:34 Cumulative 341.8 hours Start 2022.05.04 @ 13:12:28 End 2022.05.04 @ 13:17:24 Sessions 1 Manual Loads 0 Difficulty Rogue Special Mode None Game No. 112 Rogue 112 Adventurer 0 Explorer 0 Win Type - Total 7 Types 3/1/0/1/2/0/0/0/0 Lore% 66 Gallery% 78 Achievement% 69 Wizard Run 0 Options --------- ASCII 0 Keyboard 0 Movement Mouse Keybinds 0 Fullscreen 0 Font 28/SmallcapsGlow Map View 72x54 Tactical HUD 1 Map Filters NONE Filters NONE Steam 1 RUN: 474902a5-2f3a-40c6-801f-430a6161939b